Cogmind - Beta 17 @@@ ROGUE MODE // 2026.08.02 @ 01:40:43 Player: LanceLander Result: Destroyed by G-73 Enforcer with Phase Gun Performance ------------- Evolutions (6) 3000 Regions Visited (25) 5000 Robots Destroyed (237) 1185 Value Destroyed (12799) 12799 Prototype IDs (38) 760 Alien Tech Used (0) 0 Bonus (9898) 9898 TOTAL SCORE: 32642 Bonus ------- High Alert Combat Kills 2274 Follower Combat Kills 4844 Entered Garrisons 1000 Used RIF Installer 2000 Entered DSFs 500 Aligned with FarCom 300 Friendly Fire -1020 Cogmind --------- Core Integrity 0/1150 Matter 13/300 Energy 28/100 System Corruption 6% Temperature Cool (0) Movement Rolling (100) Location -4/Factory Parts ------- > --- POWER (2) -------- (None) > --- PROPULSION (5) --- Armored Huge Wheel > --- UTILITY (9) ------ Advanced Target Analyzer Improved Transmission Jammer Relay Coupler [NC] (20) Relay Coupler [Swarmer] (13) Relay Coupler [Grunt] (7) Relay Coupler [Brawler] (36) Relay Coupler [Sentry] (29) Relay Coupler [Demolisher] (26) > --- WEAPON (3) ------- Improved Arc Projector > --- INVENTORY (5) ---- Light Nuclear Core Antigrav System Relay Coupler [NC] (36) Relay Coupler [Specialist] (35) Peak State ------------ > --- POWER ------------ Micro Fission Core Light Antimatter Reactor > --- PROPULSION ------- Flexi-carbon Leg Myomer Leg Myomer Leg Myomer Leg Advanced VSS Leg > --- UTILITY ---------- Advanced Heat Sink Advanced Target Analyzer Improved Medium Armor Plating Relay Coupler [NC] Relay Coupler [Swarmer] Relay Coupler [Grunt] Relay Coupler [Hunter] Relay Coupler [Heavy] Trap Reconfigurator > --- WEAPON ----------- Railgun Railgun Improved Remote Datajack > --- INVENTORY -------- Flexi-carbon Leg Relay Coupler [NC] Relay Coupler [Specialist] Relay Coupler [Specialist] Micro-nuke Launcher [Rating: 111] Favorites ----------- Power Light Angular Momentum Engine Engine Light Angular Momentum Engine Power Core Neutrino Core Reactor Antimatter Reactor Propulsion Flexi-carbon Leg Treads Light Treads Leg Flexi-carbon Leg Wheel Centrium Wheel Hover Unit Antigrav System Flight Unit VTOL Module Utility Large Storage Unit Device Trap Reconfigurator Storage Large Storage Unit Processor Melee Analysis Suite Hackware Relay Coupler [NC] Protection Improved Medium Armor Plating Weapon Bore Cannon Energy Gun Dispersion Rifle Energy Cannon Matter Neutralizer Ballistic Gun Gauss Rifle Ballistic Cannon Bore Cannon Launcher Improved Grenade Launcher Special Weapon Remote Datajack Impact Weapon Heavy Flail Slashing Weapon Katana Special Melee Weapon Advanced Datajack Build | -11 -10 -10 -9 -9 -9 -8 -8 -8 -8 -8 -7 -7 -7 -7 -6 -6 -5 -5 -5 -5 -5 -5 -4 -4 -4 ------- Run | Yrd Mat Min Mat Min Exi Min Mat Gar Mat Gar Fac Was Fac DSF Fac Ext Fac Was Fac Gar Fac Gar Fac Gar Fac Slots Evolved 12 | . . . 2 . . . 2 . . . 2 . . . 2 . 2 . . . . . 2 . . Power 1 | . . . . . . . . . . . . . . . . . 1 . . . . . . . . Propulsion 3 | . . . . . . . . . . . 1 . . . 1 . . . . . . . 1 . . Utility 7 | . . . 2 . . . 2 . . . . . . . 1 . 1 . . . . . 1 . . Weapon 1 | . . . . . . . . . . . 1 . . . . . . . . . . . . . . Parts Attached 277 | 7 5 3 5 8 . 4 8 5 27 19 18 6 . 6 10 12 6 9 9 29 7 14 22 28 10 Power 31 | 1 . . . 2 . . 2 . 5 2 1 1 . 1 1 1 . . 2 4 1 . 2 5 . Engine 9 | 1 . . . 2 . . . . 2 1 1 . . . 1 . . . . 1 . . . . . Core 17 | . . . . . . . 2 . 3 1 . . . 1 . . . . 1 2 1 . 2 4 . Reactor 5 | . . . . . . . . . . . . 1 . . . 1 . . 1 1 . . . 1 . Propulsion 69 | 2 . . . 2 . 1 1 . 8 3 6 . . 3 4 4 1 3 1 7 2 4 4 8 5 Treads 8 | 2 . . . 1 . 1 1 . . . . . . . . . . 1 . . . . . 1 1 Leg 54 | . . . . 1 . . . . 7 3 6 . . 3 4 4 1 2 1 7 2 4 4 4 1 Wheel 2 | . . . . . . . . . . . . . . . . . . . . . . . . . 2 Hover 3 | . . . . . . . . . . . . . . . . . . . . . . . . 2 1 Flight 2 | . . . . . . . . . 1 . . . . . . . . . . . . . . 1 . Utility 110 | 2 3 3 2 2 . 1 5 3 8 12 5 3 . 1 5 3 4 2 5 9 4 7 11 8 2 Device 26 | 1 . 1 . 1 . 1 1 1 3 4 1 1 . . 2 . 1 . 1 1 . 1 3 1 1 Storage 6 | 1 3 . . . . . . . . . . . . . . 1 . . 1 . . . . . . Processor 13 | . . . 2 . . . 3 . . 1 . 1 . . . . 1 . 2 . . . 3 . . Hackware 45 | . . . . . . . . 2 4 5 3 . . 1 2 1 2 . 1 5 3 6 4 5 1 Protection 20 | . . 2 . 1 . . 1 . 1 2 1 1 . . 1 1 . 2 . 3 1 . 1 2 . Artifact . | . . . . . . . . . . . . . . . . . . . . . . . . . . Weapon 67 | 2 2 . 3 2 . 2 . 2 6 2 6 2 . 1 . 4 1 4 1 9 . 3 5 7 3 Energy Gun 16 | 1 2 . 1 1 . . . . 1 . 1 . . . . 1 . . . 2 . 2 . 3 1 Energy Cannon 3 | . . . 1 . . . . . . . . . . . . . . 1 . . . . 1 . . Ballistic Gun 12 | 1 . . . . . . . . . . 3 . . . . . . 1 . 4 . . . 3 . Ballistic Cannon 13 | . . . . . . . . . . 2 1 2 . 1 . . 1 2 1 1 . . 1 . 1 Launcher 7 | . . . 1 . . 1 . 1 1 . . . . . . 1 . . . 1 . . . 1 . Special Weapon 10 | . . . . . . . . 1 1 . 1 . . . . 2 . . . 1 . 1 3 . . Impact Weapon 2 | . . . . . . . . . 2 . . . . . . . . . . . . . . . . Slashing Weapon 3 | . . . . 1 . 1 . . 1 . . . . . . . . . . . . . . . . Piercing Weapon . | . . . . . . . . . . . . . . . . . . . . . . . . . . Special Melee Weapon 1 | . . . . . . . . . . . . . . . . . . . . . . . . . 1 Unidentified Prototypes 4 | . 1 . . . . . . . 1 . 1 . . . . 1 . . . . . . . . . Corrupted Parts 5 | . . 1 . . . 3 . . . . . . . . . . . . . 1 . . . . . System Corruption 21 | . . 8 . . . 12 . . . . . . . . . . . . . 1 . . . . . Parts Lost 101 | . . 1 1 8 . 1 1 1 6 8 . . . . . 1 1 7 1 17 . 3 11 28 5 Power 16 | . . . . 2 . . . 1 1 1 . . . . . . . 1 . 4 . . 1 3 2 Propulsion 27 | . . . . 2 . 1 . . 2 2 . . . . . . . 2 1 4 . . 2 11 . Utility 32 | . . 1 . 1 . . 1 . 1 5 . . . . . . 1 3 . 5 . 1 4 8 1 Weapon 26 | . . . 1 3 . . . . 2 . . . . . . 1 . 1 . 4 . 2 4 6 2 Highest Loss Streak 11 | . . 1 1 6 . 1 1 1 2 5 . . . . . 1 1 6 1 11 . 1 5 10 4 To Critical Strikes 2 | . . . . . . . . . . . . . . . . . . 2 . . . . . . . Average Backups 12 | 1 8 10 13 13 15 15 13 14 14 14 14 15 15 14 14 15 14 6 5 13 14 14 10 4 4 Power . | . 1 1 1 . 1 1 1 1 . . . . . . 1 1 1 . . . . . . . 1 Propulsion 1 | . . . 1 1 2 2 1 2 1 1 1 2 2 1 1 4 5 1 . 1 1 1 1 . . Utility 6 | . 2 4 6 7 7 8 5 7 8 6 7 8 9 8 8 7 4 1 1 8 11 11 7 3 3 Weapon 3 | . 4 5 5 4 4 4 4 3 3 3 4 3 3 2 2 1 3 2 2 2 2 . . . . Tool/Special . | . . . . . . . . . . . . . . . . . . . . . . . . . . Unused Backups 50 | . 1 . 2 . 2 . 1 9 2 4 . 1 . 5 2 1 . 2 1 5 1 4 3 1 3 Power 3 | . . . . . 1 . . 1 . . . . . . 1 . . . . . . . . . . Propulsion 14 | . . . . . . . . 3 2 . . . . 4 . . . 2 . 1 1 1 . . . Utility 22 | . . . . . . . . 3 . 3 . 1 . 1 1 1 . . . 2 . 3 3 1 3 Weapon 11 | . 1 . 2 . 1 . 1 2 . 1 . . . . . . . . 1 2 . . . . . Tool/Special . | . . . . . . . . . . . . . . . . . . . . . . . . . . Average Slot Usage (%) 95 | . 100 99 99 92 100 97 99 99 97 98 98 100 100 100 99 99 96 82 90 94 94 93 91 79 78 Engine 4 | . 14 14 11 9 11 11 4 . 3 5 7 4 . . 3 4 4 6 4 3 1 . . . . Core 3 | . . . . . . . 4 8 3 3 . . . 4 2 . . . 4 2 3 5 7 6 9 Reactor 1 | . . . . . . . . . . . . 2 7 2 . 1 5 1 . 3 5 5 2 . . Treads 5 | . 28 28 22 12 11 11 18 18 . . . . . . . . . . 5 1 . . . 1 . Leg 15 | . . . . 3 11 8 . . 16 17 22 23 23 23 26 26 23 17 10 19 23 23 24 16 2 Device 11 | . 14 10 2 7 11 11 18 17 8 18 14 7 7 7 16 15 16 16 18 7 2 5 5 7 4 Storage 7 | . 14 14 11 11 11 11 9 9 9 9 7 7 7 7 6 6 5 5 3 5 5 5 3 . . Processor 7 | . . . 19 22 22 22 19 18 14 9 . 6 7 7 1 . . 5 10 6 4 . 2 5 5 Hackware 12 | . . . . . . . . . 17 13 15 15 15 15 13 17 9 5 1 13 20 22 25 25 34 Protection 5 | . . 3 10 3 . . 7 9 3 2 6 7 7 7 6 6 8 4 11 9 5 5 3 2 . Energy Gun 4 | . 22 28 13 16 11 10 . . . . . . . . . . 2 . . 3 11 14 7 2 2 Ballistic Cannon 4 | . . . . . . . . . . 5 12 10 15 18 13 18 8 10 14 3 . . . . 2 Special Weapon 2 | . . . . . . . . . 4 4 5 7 7 4 6 . 3 1 . 2 5 2 4 2 . Impact Weapon 1 | . . . . . . . . . 6 8 . . . . . . . . . . . . . . . Slashing Weapon 3 | . . . . 3 11 2 18 16 7 . . . . . . . . . . . . . . . . Peak Build Rating 111 | 9 14 17 22 22 18 23 39 43 40 45 55 58 57 58 69 72 85 84 89 94 92 97 108 111 98 Average Rating 55 | 5 12 13 20 17 17 17 31 39 35 38 51 53 57 54 65 69 79 67 80 81 91 92 98 79 75 On Entrance 50 | . 9 14 17 20 17 18 23 39 39 38 45 54 57 57 54 69 72 79 78 88 87 90 93 108 43 Avg Prop Armor Cover (%) 6 | . . . . 9 9 8 . . . . . . . . . . . 5 5 6 . 1 . 8 9 Naked Turns . | . . . . . . . . . . . . . . . . . . . . . . . . . . Heaviest Build 90 | 14 32 34 37 37 32 37 45 45 51 53 59 66 66 72 73 79 83 84 81 81 88 90 88 50 27 Greatest Support 113 | 40 40 40 40 40 20 40 42 42 42 35 60 60 60 60 74 76 76 76 70 80 73 75 113 113 44 Greatest Overweight (x) 11 | 2 . . . 11 1 1 1 1 8 2 1 1 1 1 1 1 1 2 2 1 1 1 1 2 1 Average Overweight (x) . | . . . . . 1 . . . 1 1 . . 1 1 . . . . . . 1 1 . . . Largest Inventory Capacity 15 | 8 15 15 15 15 15 15 15 15 15 15 15 15 15 15 15 15 15 15 15 15 15 15 15 5 5 Average Capacity 13 | 7 11 15 15 15 15 15 15 15 15 15 15 15 15 15 15 15 15 7 5 15 15 15 11 5 5 Most Carried 15 | 2 10 15 15 15 15 15 15 15 15 15 15 15 15 15 15 15 15 15 8 15 15 15 15 5 5 Average Carried 12 | 1 8 11 13 13 14 14 13 14 14 14 14 14 15 14 14 15 14 6 5 13 14 14 10 4 4 Final Capacity 15 | 8 15 15 15 15 15 15 15 15 15 15 15 15 15 15 15 15 15 5 15 15 15 15 5 5 5 Final Carried 15 | 2 10 15 14 15 15 13 15 15 15 15 15 15 15 15 15 15 14 5 8 15 13 15 5 5 4 Class Distribution -------------------- 23% | Bothacker-Skirmisher 11% | Mutant 10% | Bothacker-Mutant 8% | Botlord-Skirmisher 7% | Gladiator 7% | Scavenger-Mutant 5% | Scavenger-Tank 5% | Bothacker-Tank 5% | Scavenger-Gladiator 3% | Scavenger-Skirmisher Dominant Class ---------------- Mutant | -10/Materials Mutant | -10/Mines Mutant | -9/Materials Mutant | -9/Mines Scavenger-Mutant | -9/Exiles Scavenger-Mutant | -8/Mines Scavenger-Gladiator | -8/Materials Gladiator | -8/Garrison Bothacker-Mutant | -8/Materials Bothacker-Mutant | -8/Garrison Bothacker-Skirmisher | -7/Factory Bothacker-Skirmisher | -7/Waste Bothacker-Skirmisher | -7/Factory Bothacker-Skirmisher | -7/DSF Bothacker-Skirmisher | -6/Factory Bothacker-Skirmisher | -6/Extension Scavenger-Tank | -5/Factory Mutant | -5/Waste Tank | -5/Factory Bothacker-Tank | -5/Garrison Bothacker-Skirmisher | -5/Factory Scavenger-Skirmisher | -5/Garrison Botlord-Skirmisher | -4/Factory Scavenger-Mutant | -4/Garrison Botlord-Mutant | -4/Factory Resources | -11 -10 -10 -9 -9 -9 -8 -8 -8 -8 -8 -7 -7 -7 -7 -6 -6 -5 -5 -5 -5 -5 -5 -4 -4 -4 ----------- Run | Yrd Mat Min Mat Min Exi Min Mat Gar Mat Gar Fac Was Fac DSF Fac Ext Fac Was Fac Gar Fac Gar Fac Gar Fac Matter Collected 9609 | 266 50 138 182 128 . 44 214 153 551 588 732 317 . 174 101 1421 709 655 230 1325 107 486 446 592 . Remotely 3098 | . . . . . . . . . . . . . . . 101 1421 709 647 220 . . . . . . Salvage Created 9141 | 21 384 36 610 342 . 55 499 462 747 529 549 . . 77 . 903 526 251 170 958 55 713 706 548 . Parts 453 | 6 21 1 48 27 . 5 14 20 31 27 30 . . 7 . 32 30 1 12 43 4 23 39 32 . Haulers Intercepted 4 | . 1 . . . . . 1 . 2 . . . . . . . . . . . . . . . . Recyclers Shooed 4 | . 1 . . 1 . . . . . . . . . . . 2 . . . . . . . . . Parts Field Recycled . | . . . . . . . . . . . . . . . . . . . . . . . . . . Retrieved Matter . | . . . . . . . . . . . . . . . . . . . . . . . . . . Parts Self-Destructed . | . . . . . . . . . . . . . . . . . . . . . . . . . . Prevented . | . . . . . . . . . . . . . . . . . . . . . . . . . . Parts Restored . | . . . . . . . . . . . . . . . . . . . . . . . . . . Kills | -11 -10 -10 -9 -9 -9 -8 -8 -8 -8 -8 -7 -7 -7 -7 -6 -6 -5 -5 -5 -5 -5 -5 -4 -4 -4 ------- Run | Yrd Mat Min Mat Min Exi Min Mat Gar Mat Gar Fac Was Fac DSF Fac Ext Fac Was Fac Gar Fac Gar Fac Gar Fac Combat Hostiles Destroyed 209 | . 11 2 18 12 . 6 6 11 15 13 11 . . . . 17 12 1 3 29 1 13 12 16 . Melee 35 | . . . . 1 . . 6 9 12 6 . . . . . . . . . . . . . 1 . Guns 63 | . 9 2 3 4 . 1 . . . . . . . . . . 1 . . 16 1 13 4 9 . Cannons 56 | . . . 6 . . . . . . 3 8 . . . . 13 4 1 3 9 . . 8 1 . AOE 48 | . 2 . 7 6 . 5 . 2 3 . 3 . . . . 4 7 . . 4 . . . 5 . Classes Destroyed 20 | 2 4 . 2 1 . . 2 2 . . 1 . . . . 1 2 1 1 1 . . . . . Worker 5 | 1 . . . . . . . . . . 1 . . . . 1 2 . . . . . . . . Builder 2 | . . . . 1 . . . . . . . . . . . . 1 . . . . . . . . Tunneler 1 | 1 . . . . . . . . . . . . . . . . . . . . . . . . . Hauler 4 | . 1 . . . . . 1 . 2 . . . . . . . . . . . . . . . . Recycler 5 | . . . . . . . 1 . . . 2 . . . . 1 . . . . . . 1 . . Mechanic 1 | . . . . . . . 1 . . . . . . . . . . . . . . . . . . Operator 1 | . . . . . . . . . . . 1 . . . . . . . . . . . . . . Watcher 3 | . 1 . . . . . 1 . 1 . . . . . . . . . . . . . . . . Swarmer 58 | . 6 2 7 6 . 3 . 5 3 . . . . . . 4 1 . . 13 . 2 2 4 . Saboteur 1 | . . . . . . . . . . . . . . . . . 1 . . . . . . . . Grunt 74 | . 5 . 6 3 . 3 2 2 10 4 5 . . . . 4 7 . . 6 . 9 . 8 . Brawler 1 | . . . . . . . . . . . . . . . . 1 . . . . . . . . . Duelist 4 | . . . 1 1 . . 1 . 1 . . . . . . . . . . . . . . . . Protector 1 | . . . . . . . . . . . . . . . . . 1 . . . . . . . . Sentry 23 | . . . 4 2 . . 3 1 1 2 2 . . . . 5 . . 1 . . . . 2 . Specialist 4 | . . . . . . . . . . . . . . . . . . . . 4 . . . . . Hunter 10 | . . . . . . . . 1 . 1 . . . . . . 2 . . 2 1 . 3 . . Programmer 28 | . . . . . . . . 2 . 6 4 . . . . . 1 . 1 3 . 2 7 2 . Heavy 1 | . . . . . . . . . . . . . . . . . . . 1 . . . . . . Compactor 1 | . . . . . . . . . . . . . . . . . . 1 . . . . . . . Wasp 2 | . . . . . . . . . . . . . . 2 . . . . . . . . . . . Thug 7 | . . . . . . . . . . . . . . . . 4 2 . . 1 . . . . . Best Kill Streak 9 | 1 6 2 9 4 . 3 4 3 3 2 3 . . . . 8 5 1 1 6 1 4 2 3 . Combat Bots Only 9 | . 6 2 9 4 . 3 2 3 3 2 3 . . . . 6 4 1 1 6 1 4 2 3 . Max Kills in Single Turn 4 | 1 3 1 4 3 . 2 1 2 2 1 3 . . 1 . 3 3 1 1 2 1 2 1 1 . Gunslinging 1 | . . . . 1 . . . . . . . . . . . . . . . 1 . 1 . . . Exploded 4 | . 2 . 4 3 . 2 . 2 2 . 3 . . . . 3 2 . . 2 . . . 1 . Melee 1 | . . . . 1 . . 1 1 1 1 . . . . . . . . . . . . . 1 . Uniques/NPCs Destroyed . | . . . . . . . . . . . . . . . . . . . . . . . . . . Combat | -11 -10 -10 -9 -9 -9 -8 -8 -8 -8 -8 -7 -7 -7 -7 -6 -6 -5 -5 -5 -5 -5 -5 -4 -4 -4 -------- Run | Yrd Mat Min Mat Min Exi Min Mat Gar Mat Gar Fac Was Fac DSF Fac Ext Fac Was Fac Gar Fac Gar Fac Gar Fac Hostile Shots Fired 1759 | . 33 12 37 60 . 12 59 67 79 127 91 . . . . 162 92 4 10 278 6 74 126 196 234 Missed 565 | . 17 4 9 11 . 5 15 17 20 37 31 . . . . 64 34 . . 86 . 14 36 55 110 Hits 1194 | . 16 8 28 49 . 7 44 50 59 90 60 . . . . 98 58 4 10 192 6 60 90 141 124 Melee 12 | . . . 1 2 . . 3 . 1 . . . . . . . . 4 . . . . . . 1 Projectile 1182 | . 16 8 27 47 . 7 41 50 58 90 60 . . . . 98 58 . 10 192 6 60 90 141 123 AOE 5 | . . . . . . . . . . . . . . . . . . . 2 . . . 1 . 2 Critical Strikes 38 | . . . . 2 . 2 2 1 1 5 3 . . . . . 1 2 1 5 . 3 3 6 1 Part Disruptions 2 | . . 1 . . . . . . . . . . . . . . . . . . . . . 1 . Damage Taken 20591 | . 157 87 507 699 . 134 695 624 1009 1206 788 . . . 34 1458 1239 250 539 3694 135 1236 1782 3148 1170 Core 2859 | . 45 26 97 149 . . 29 52 224 228 66 . . . . 63 114 35 . 485 . 91 314 561 280 Absorbed by Shields . | . . . . . . . . . . . . . . . . . . . . . . . . . . Ignored by Resistances 407 | . . . . . . . . . 18 95 . . . . . . 131 34 . . . . 129 . . Regen/Repaired (Parts) 1132 | . . . . . . . 222 . 37 . 51 95 . . . 206 212 99 106 104 . . . . . Core Remaining (%) 60 | 100 . 71 . . . 38 . . . 3 . . . 90 . 92 . . . . . 27 . . . Volleys Fired 675 | 5 18 3 24 24 . 13 . 5 25 39 61 10 . 6 2 53 45 32 8 99 6 57 65 72 3 Largest 3 | 2 2 2 2 2 . 1 . 1 1 2 3 2 . 3 2 3 3 3 3 3 2 3 2 2 1 Hottest 264 | 70 90 90 108 125 . 50 . 36 36 85 135 96 . 144 96 144 171 143 128 176 176 264 193 150 65 Shots Fired 1217 | 10 35 7 43 41 . 13 . 5 25 46 108 12 . 14 4 144 87 65 23 182 9 130 104 107 3 Gun 512 | 10 35 7 22 32 . 2 . . . . 21 4 . . . . 14 . . 108 5 122 45 84 1 Cannon 487 | . . . 19 3 . . . . . 18 64 2 . 12 4 139 48 65 23 49 . . 35 4 2 Launcher 60 | . . . 2 6 . 11 . 1 3 . 2 . . . . 4 12 . . 5 . . . 14 . Special 158 | . . . . . . . . 4 22 28 21 6 . 2 . 1 13 . . 20 4 8 24 5 . Kinetic 601 | 5 4 . . . . . . . . 18 77 6 . 12 4 139 48 65 23 133 . . 1 64 2 Thermal 303 | 5 . . . 28 . 2 . . . . . . . . . . 14 . . 24 5 122 79 24 . Explosive 60 | . . . 2 6 . 11 . 1 3 . 2 . . . . 4 12 . . 5 . . . 14 . Electromagnetic 95 | . 31 7 41 7 . . . . . . 8 . . . . . . . . . . . . . 1 Robot Hit Streak 29 | 4 4 5 11 29 . 5 . 2 7 7 8 7 . 1 . 4 6 6 6 7 6 8 9 15 . Robot Miss Streak 19 | 1 7 1 3 3 . 1 . 2 2 3 6 2 . 5 4 19 7 6 4 8 1 4 3 2 3 Penetration Max 1 | . . . . . . . . . . . 1 . . 1 . 1 . 1 . 1 . . . . . Secondary Targets 12 | . 2 . . 1 . . . . . . . . . . . . . . . 5 . 3 . 1 . Max Gunslinging Chain 1 | . 1 . . 1 . . . . . . . . . . . . . . . 1 . 1 . 1 . Shots Hit Robots 756 | 7 25 5 34 35 . 3 36 36 52 59 60 8 . 3 . 43 34 28 11 83 7 56 67 59 5 Core Hits 431 | 2 20 2 30 16 . 15 8 13 17 18 33 . . 6 . 42 45 2 5 65 1 26 23 42 . Critical Kills 39 | . . . . . . . . . . 1 4 . . 2 . 11 3 1 1 6 1 4 2 3 . Critical Parts Destroyed 59 | . . . . . . . . . 1 8 7 . . . . 12 8 5 1 3 . 6 4 4 . Critical Strikes 137 | . . . . 1 . . 5 5 5 9 11 1 . 2 . 25 12 22 2 10 1 10 6 10 . Burn 5 | . . . . 1 . . . . . . . . . . . . 1 . . . . . . 3 . Destroy 108 | . . . . . . . . . . 1 11 1 . 2 . 25 11 22 2 9 1 10 6 7 . Blast 1 | . . . . . . . . . . . . . . . . . . . . 1 . . . . . Smash 9 | . . . . . . . . . 1 8 . . . . . . . . . . . . . . . Sever 14 | . . . . . . . 5 5 4 . . . . . . . . . . . . . . . . Melee Attacks 242 | . . . . 2 . . 50 61 49 71 . . . . . . . . . . . . . . 9 Impact 80 | . . . . . . . . . 9 71 . . . . . . . . . . . . . . . Slashing 153 | . . . . 2 . . 50 61 40 . . . . . . . . . . . . . . . . Piercing . | . . . . . . . . . . . . . . . . . . . . . . . . . . Sneak Attacks 13 | . . . . . . . 5 2 2 3 . . . . . . . . . . . . . . 1 Combat Hostiles . | . . . . . . . . . . . . . . . . . . . . . . . . . . Follow-up Attacks 33 | . . . . . . . 7 7 8 11 . . . . . . . . . . . . . . . Damage Inflicted 27328 | 81 551 122 1074 1051 . 732 1335 1512 1566 2007 1503 36 . 135 . 2033 2905 1250 311 2846 81 1598 1706 2893 . Guns 6534 | 78 390 76 343 505 . 13 . . . . 149 36 . . . . 86 . . 986 81 1598 948 1245 . Cannons 6794 | . . . 306 88 . . . . . 207 1021 . . 135 . 1263 311 1250 311 1125 . . 731 46 . Explosions 7944 | . 157 46 423 385 . 718 . 101 236 . 306 . . . . 747 2508 . . 735 . . . 1582 . Melee 5938 | . . . . 70 . . 1335 1411 1322 1800 . . . . . . . . . . . . . . . Ramming 118 | 3 4 . 2 3 . 1 . . 8 . 27 . . . . 23 . . . . . . 27 20 . Kinetic 7599 | 28 16 . . . . . . . . 207 1135 36 . 135 . 1263 311 1250 311 2003 . . . 904 . Thermal 5810 | 50 157 46 191 426 . 13 . . . . 91 . . . . . 983 . . 108 81 1598 1679 387 . Explosive 6525 | . . . 232 385 . 718 . 101 236 . 215 . . . . 747 1574 . . 735 . . . 1582 . Electromagnetic 1338 | . 374 76 649 167 . . . . . . 35 . . . . . 37 . . . . . . . . Impact 1943 | . . . . . . . . . 143 1800 . . . . . . . . . . . . . . . Slashing 3995 | . . . . 70 . . 1335 1411 1179 . . . . . . . . . . . . . . . . Piercing . | . . . . . . . . . . . . . . . . . . . . . . . . . . Highest Corruption 14 | . . 8 . . . 12 . 2 2 9 4 4 . . 1 1 3 3 3 14 14 14 1 3 6 Average Corruption 6 | . . 8 . . . 11 . 1 2 8 3 3 . . 1 1 2 3 3 10 14 14 1 1 4 Corruption Purged 5 | . . . . . . . . . . . . 4 . . 1 . . . . . . . . . . Corruption Blocked . | . . . . . . . . . . . . . . . . . . . . . . . . . . Effects 301 | . . 2 . . . 1 . 2 29 61 9 5 . . 1 2 . 19 6 62 17 67 4 2 12 Message Errors 73 | . . . . . . . . 1 8 16 3 2 . . . . . 8 1 14 5 11 . 2 2 Matter Fused 67 | . . 1 . . . . . . 3 18 2 . . . . . . 4 2 14 5 14 2 . 2 Heat Flow Errors 35 | . . . . . . 1 . . 5 6 . 1 . . . . . 2 1 8 1 10 . . . Energy Discharges 31 | . . . . . . . . 1 3 6 . 1 . . . 1 . . . 5 2 7 1 . 4 Parts Rejected 3 | . . . . . . . . . . . . . . . . . . 1 . 2 . . . . . Parts Fused 4 | . . . . . . . . . 2 . . . . . . . . . . . . 2 . . . Data Loss (minor) 49 | . . . . . . . . . 7 9 4 . . . 1 . . 1 1 9 2 12 . . 3 Data Loss (major) 9 | . . . . . . . . . . 3 . . . . . . . 2 . 2 . 2 . . . Misfires 14 | . . 1 . . . . . . . 2 . 1 . . . 1 . 1 . 3 1 3 1 . . Alerts 11 | . . . . . . . . . 1 1 . . . . . . . . 1 4 1 2 . . 1 Weapon Failures 5 | . . . . . . . . . . . . . . . . . . . . 1 . 4 . . . Overload Shots . | . . . . . . . . . . . . . . . . . . . . . . . . . . Overflow Damage 1322 | . . . 33 45 . 11 166 24 95 650 48 . . . . 8 80 . . 22 . . 5 135 . Projectiles 92 | . . . 2 10 . . . . . . 48 . . . . 5 5 . . 22 . . . . . Explosions 288 | . . . 31 21 . 11 . 8 4 . . . . . . 3 75 . . . . . . 135 . Melee 942 | . . . . 14 . . 166 16 91 650 . . . . . . . . . . . . 5 . . Knockbacks 45 | . . . . . . . . . . 8 16 . . . . 10 . . . 11 . . . . . Impact 3 | . . . . . . . . . . 2 1 . . . . . . . . . . . . . . Kinetic 41 | . . . . . . . . . . 6 15 . . . . 10 . . . 10 . . . . . Secondary 1 | . . . . . . . . . . . . . . . . . . . . 1 . . . . . Self-Inflicted Damage 919 | . . . 133 65 . 33 . . . . 41 . . . . 163 243 . . 30 . . . 211 . Shots 21 | . . . 4 2 . 1 . . . . 1 . . . . 3 4 . . 1 . . . 5 . Rammed 7 | 2 1 . 1 2 . 1 . . . . . . . . . . . . . . . . . . . Targets Rammed 35 | 3 1 . 1 2 . 1 . . 2 . 5 . . . . 1 . . . . . . 1 18 . Kicked 27 | . . . . . . . . . 2 . 5 . . . . 1 . . . . . . 1 18 . Crushed 1 | 1 . . . . . . . . . . . . . . . . . . . . . . . . . Highest Temperature 459 | 90 180 60 195 386 . 264 . 1 284 187 54 278 . 24 48 42 57 222 315 304 210 459 246 76 . Average Temperature 92 | 40 60 24 78 145 . 71 . 1 108 77 26 119 . 15 25 12 19 49 143 79 95 134 80 24 . Received Heat Transfer 3522 | . 48 . 111 213 . 81 270 126 459 189 102 . . . . 324 66 . 45 573 36 399 66 381 33 Effects 14 | . . . . 2 . . . . . . . . . . . . . . 1 2 . 9 . . . Shutdowns 5 | . . . . . . . . . . . . . . . . . . . . . . 5 . . . Energy Bleed 2 | . . . . . . . . . . . . . . . . . . . 1 1 . . . . . Interference 3 | . . . . 2 . . . . . . . . . . . . . . . 1 . . . . . Matter Decay 1 | . . . . . . . . . . . . . . . . . . . . . . 1 . . . Short Circuit 1 | . . . . . . . . . . . . . . . . . . . . . . 1 . . . Damage (minor) 2 | . . . . . . . . . . . . . . . . . . . . . . 2 . . . Siege Activations . | . . . . . . . . . . . . . . . . . . . . . . . . . . Martial Activations . | . . . . . . . . . . . . . . . . . . . . . . . . . . Shielding Activations . | . . . . . . . . . . . . . . . . . . . . . . . . . . Robots Disrupted . | . . . . . . . . . . . . . . . . . . . . . . . . . . Combat Hostiles . | . . . . . . . . . . . . . . . . . . . . . . . . . . Robots Corrupted 8 | . . . 2 1 . . . . 1 4 . . . . . . . . . . . . . . . Combat Hostiles 7 | . . . 2 1 . . . . . 4 . . . . . . . . . . . . . . . Parts Fried 5 | . 1 . . 2 . . . . . 2 . . . . . . . . . . . . . . . Impact Corruptions 27 | . . . . . . . . . 2 24 . . . . . . . . . . . . 1 . . Robots Melted . | . . . . . . . . . . . . . . . . . . . . . . . . . . Combat Hostiles . | . . . . . . . . . . . . . . . . . . . . . . . . . . Parts Melted 15 | . . . . . . . . . . . . . . . . 2 1 . . . . 4 5 3 . Heat Transferred 8148 | 148 150 50 350 999 . 37 . . . . 100 . . . . . 972 . . 148 111 2072 1887 1124 . Parts Sabotaged 3 | . . . . . . . . . . . . . . . . . . . . . . . . . 3 Parts Stolen . | . . . . . . . . . . . . . . . . . . . . . . . . . . Parts Stripped . | . . . . . . . . . . . . . . . . . . . . . . . . . . Power Chain Reactions 7 | . 3 1 3 . . . . . . . . . . . . . . . . . . . . . . Alert | -11 -10 -10 -9 -9 -9 -8 -8 -8 -8 -8 -7 -7 -7 -7 -6 -6 -5 -5 -5 -5 -5 -5 -4 -4 -4 ------- Run | Yrd Mat Min Mat Min Exi Min Mat Gar Mat Gar Fac Was Fac DSF Fac Ext Fac Was Fac Gar Fac Gar Fac Gar Fac Maximum Alert Level 5 | . 1 . 1 1 . . . 2 1 3 2 . . 1 1 4 5 3 3 5 3 5 3 3 2 Low Security (%) 44 | 100 90 100 33 40 . 100 100 49 97 19 87 100 100 53 97 27 . . . . . . . 7 . Level 1 16 | . 9 . 66 59 . . . 32 2 24 7 . . 46 2 9 . 7 59 . . . 33 27 91 Level 2 15 | . . . . . . . . 18 . 31 5 . . . . 28 24 82 9 8 . 11 46 45 8 Level 3 12 | . . . . . . . . . . 24 . . . . . 15 2 10 31 38 100 30 19 19 . Level 4 7 | . . . . . . . . . . . . . . . . 19 34 . . 30 . 50 . . . Level 5 3 | . . . . . . . . . . . . . . . . . 38 . . 21 . 8 . . . High Security . | . . . . . . . . . . . . . . . . . . . . . . . . . . Max Security . | . . . . . . . . . . . . . . . . . . . . . . . . . . Sterilizations 1 | . . . . . . . . . . . . . . 1 . . . . . . . . . . . Peak Influence 2060 | 5 225 63 344 348 . 183 59 635 309 895 472 71 5 383 200 1321 2060 725 848 1856 974 1639 860 825 417 Initial 974 | . 3 57 . 124 . . 59 . 309 26 469 71 . . 200 . 620 721 262 582 974 566 860 200 417 Average 429 | . 88 10 213 224 . 66 8 250 52 448 137 9 . 186 77 604 1339 525 462 1201 902 1119 530 472 327 Influence Increases 14990 | 10 310 71 551 374 . 223 218 645 678 1179 636 51 5 403 117 1795 1912 94 842 1654 55 1273 796 995 103 Destroy 0b10 Robot/C 6780 | . 220 40 360 240 . 120 120 240 440 560 300 . . 160 20 760 660 . 260 700 40 600 460 400 80 Destroy 0b10 Robot/NC 220 | 10 10 . . 5 . . 20 15 35 . 20 . . 10 10 35 35 . 10 . . . 5 . . Destroy Leader 982 | . 44 10 80 40 . 20 44 30 100 30 92 . . 20 14 80 94 . 84 50 . 40 80 20 10 Allied During Kill 2359 | . . . . . . . . 2 33 79 19 . . 190 44 773 455 . 354 98 5 155 97 46 9 Trap Triggered on 0b10 100 | . . . . . . . . 30 . . 30 . . . 10 . . . . 10 . . . 20 . Successful Hack 181 | . 11 . 12 . . . 14 14 13 7 29 . 5 . . 12 . . . 14 8 14 14 14 . Disable Machine 585 | . 15 . 45 15 . 30 . 15 . 15 105 . . . 15 15 225 . 30 15 . 15 . 30 . Anti-Garrison Action 1600 | . . . . . . . . 150 . 400 . . . . . . 150 . . 500 . 300 . 100 . Destroy Structure 1628 | . 10 6 24 44 . 53 5 89 42 88 41 51 . 23 4 120 278 94 104 117 2 59 50 320 4 Lose Combat Pursuer 555 | . . 15 30 30 . . 15 60 15 . . . . . . . 15 . . 150 . 90 90 45 . Influence Decreases 14780 | 5 166 220 232 569 124 70 371 10 1273 324 1327 255 5 20 500 528 1119 1779 385 630 1102 443 2148 487 688 Entered New Map 6307 | . 2 92 . 195 124 . 94 . 326 14 426 133 . . 183 . 647 1339 113 250 882 243 779 87 378 Time Decay 4850 | 5 164 128 222 294 . 60 247 . 524 . 536 122 5 . 317 408 262 350 222 . 180 . 574 . 230 Lost Part 990 | . . . 10 80 . 10 . 10 60 80 . . . . . 10 10 70 10 170 . 30 110 280 50 Lost Ally 1580 | . . . . . . . . . 140 230 90 . . 20 . 110 200 20 40 210 40 170 160 120 30 Purge Threat 1053 | . . . . . . . 30 . 223 . 275 . . . . . . . . . . . 525 . . Squads Dispatched 56 | . 1 . 2 1 . . . . 4 . 8 . 1 1 2 4 7 . 6 . 3 . 11 . 5 Investigation 7 | . 1 . 1 . . . . . 2 . . . 1 . . 1 . . 1 . . . . . . Extermination 14 | . . . . . . . . . . . 4 . . . 2 . 1 . 1 . 1 . 4 . 1 Reinforcement 24 | . . . 1 1 . . . . 2 . 3 . . 1 . 3 2 . 2 . . . 7 . 2 Assault 6 | . . . . . . . . . . . . . . . . . 3 . . . 1 . . . 2 Garrison 5 | . . . . . . . . . . . 1 . . . . . 1 . 2 . 1 . . . . Intercept . | . . . . . . . . . . . . . . . . . . . . . . . . . . Searches Triggered . | . . . . . . . . . . . . . . . . . . . . . . . . . . Construction Impeded 8 | . . . 1 1 . . . . . . 1 . . . . 2 . . . . . . 3 . . Haulers Reinforced 2 | . . . . . . . . . . . 1 . . . . . . . 1 . . . . . . Active Scanning Responses . | . . . . . . . . . . . . . . . . . . . . . . . . . . Cargo Convoy Interrupts . | . . . . . . . . . . . . . . . . . . . . . . . . . . Stealth | -11 -10 -10 -9 -9 -9 -8 -8 -8 -8 -8 -7 -7 -7 -7 -6 -6 -5 -5 -5 -5 -5 -5 -4 -4 -4 --------- Run | Yrd Mat Min Mat Min Exi Min Mat Gar Mat Gar Fac Was Fac DSF Fac Ext Fac Was Fac Gar Fac Gar Fac Gar Fac Distress Signals 19 | . . . 4 . . 1 1 . 2 . 5 . . . . 2 2 . 1 . . . 1 . . Communications Jammed 14 | . . . . . . . . . . . . . . . . . . . . . . . . . 14 Distress Signals 14 | . . . . . . . . . . . . . . . . . . . . . . . . . 14 Times Spotted 487 | . 13 3 23 13 . 5 14 15 37 37 32 6 . 5 3 36 43 20 5 52 8 37 41 28 11 Peak Tracking Total 16 | . 3 3 7 4 . 3 5 3 3 8 4 2 . 3 1 8 6 5 1 16 4 9 8 5 8 Tactical Retreats 35 | . . 1 2 1 . . 1 3 1 . . . . . . . 1 13 . 4 . 4 3 1 . Traps | -11 -10 -10 -9 -9 -9 -8 -8 -8 -8 -8 -7 -7 -7 -7 -6 -6 -5 -5 -5 -5 -5 -5 -4 -4 -4 ------- Run | Yrd Mat Min Mat Min Exi Min Mat Gar Mat Gar Fac Was Fac DSF Fac Ext Fac Was Fac Gar Fac Gar Fac Gar Fac Traps Triggered 30 | . 1 1 . . . . . . . 6 1 . . 2 1 1 1 . 1 8 1 1 . 3 2 Indirectly . | . . . . . . . . . . . . . . . . . . . . . . . . . . Trap Hack Attempts . | . . . . . . . . . . . . . . . . . . . . . . . . . . Triggered . | . . . . . . . . . . . . . . . . . . . . . . . . . . Disarmed . | . . . . . . . . . . . . . . . . . . . . . . . . . . Reprogrammed . | . . . . . . . . . . . . . . . . . . . . . . . . . . Reused 10 | . . . . . . . . 3 . . 3 . . . 1 . . . . 1 . . . 2 . Traps Reconfigurated 100 | . . . . . . . 1 26 . 1 53 . . . 6 3 1 . . 1 . . 2 6 . Traps Extracted 7 | . . . . . . . . 7 . . . . . . . . . . . . . . . . . Installed 6 | . . . . . . . . 6 . . . . . . . . . . . . . . . . . Triggered 10 | . . . . . . . . 3 . . 3 . . . 1 . . . . 1 . . . 2 . Most Traps Carried 6 | . . 4 4 4 4 4 4 6 . . . . . . . . . . . . . . . . . Machines | -11 -10 -10 -9 -9 -9 -8 -8 -8 -8 -8 -7 -7 -7 -7 -6 -6 -5 -5 -5 -5 -5 -5 -4 -4 -4 ---------- Run | Yrd Mat Min Mat Min Exi Min Mat Gar Mat Gar Fac Was Fac DSF Fac Ext Fac Was Fac Gar Fac Gar Fac Gar Fac Machines Disabled 60 | . 1 . 3 1 . 2 . 2 . 5 7 . . . 1 5 16 . 2 6 . 4 . 5 . Max in Single Turn 5 | . 1 . 1 1 . 1 . 1 . 1 5 . . . 1 1 5 . . 1 . 1 . 1 . Garrison Access 3 | . . . . . . . . . . . 1 . . . . . 1 . . . . . . . 1 Garrison Relay 16 | . . . . . . . . 2 . 4 . . . . . . . . . 5 . 3 . 2 . Energy Cycler 1 | . . . . . . . . . . . . . . . . 1 . . . . . . . . . Machines Repaired . | . . . . . . . . . . . . . . . . . . . . . . . . . . Machines Dismantled . | . . . . . . . . . . . . . . . . . . . . . . . . . . Machines Sabotaged . | . . . . . . . . . . . . . . . . . . . . . . . . . . Overloaded Fab Kills . | . . . . . . . . . . . . . . . . . . . . . . . . . . Hacking | -11 -10 -10 -9 -9 -9 -8 -8 -8 -8 -8 -7 -7 -7 -7 -6 -6 -5 -5 -5 -5 -5 -5 -4 -4 -4 --------- Run | Yrd Mat Min Mat Min Exi Min Mat Gar Mat Gar Fac Was Fac DSF Fac Ext Fac Was Fac Gar Fac Gar Fac Gar Fac Machines Accessed 62 | . 3 1 3 . 2 . 10 1 10 2 8 . 1 . 2 5 . . 2 2 3 1 3 1 2 Terminals 42 | . 3 . 2 . . . 8 1 7 2 4 . 1 . . 5 . . 1 2 . 1 2 1 2 Fabricators 3 | . . . . . . . . . . . 1 . . . 1 . . . . . 1 . . . . Repair Stations 4 | . . . . . . . 1 . 1 . 1 . . . . . . . . . 1 . . . . Recycling Units . | . . . . . . . . . . . . . . . . . . . . . . . . . . Scanalyzers 4 | . . . 1 . . . . . 1 . 1 . . . 1 . . . . . . . . . . Garrison Access 6 | . . . . . . . 1 . 1 . 1 . . . . . . . 1 . 1 . 1 . . Total Hacks 159 | . 11 1 8 . 24 . 25 1 31 3 12 . 3 . 8 8 . . 2 4 6 3 4 2 3 Successful 102 | . 4 1 6 . 24 . 20 1 14 1 9 . 1 . 7 3 . . 1 1 3 1 3 1 1 Failed 54 | . 6 . 2 . . . 4 . 17 2 3 . 2 . . 5 . . 1 3 3 2 1 1 2 Catastrophic 11 | . . . . . . . 1 . 4 . . . . . . 3 . . 1 1 . . . 1 . Database Lockouts 3 | . 1 . . . . . 1 . . . . . . . 1 . . . . . . . . . . Manual 51 | . 10 . 2 . 1 . 11 . 18 . 1 . . . . 5 . . 1 . . . . . 2 Terminals 100 | . 11 . 6 . . . 22 1 25 3 5 . 3 . . 8 . . 1 4 . 3 3 2 3 Fabricators 6 | . . . . . . . . . . . 1 . . . 4 . . . . . 1 . . . . Repair Stations 10 | . . . . . . . 2 . 2 . 2 . . . . . . . . . 4 . . . . Recycling Units . | . . . . . . . . . . . . . . . . . . . . . . . . . . Scanalyzers 11 | . . . 2 . . . . . 3 . 2 . . . 4 . . . . . . . . . . Garrison Access 7 | . . . . . . . 1 . 1 . 2 . . . . . . . 1 . 1 . 1 . . Terminal Hacks 65 | . 2 1 3 . 24 . 12 1 8 1 3 . 1 . . 3 . . . 1 . 1 2 1 1 Record 24 | . . . . . 23 . . . . . 1 . . . . . . . . . . . . . . Robot Analysis 5 | . 1 . . . . . 1 . 2 . . . . . . 1 . . . . . . . . . Prototype ID Bank 6 | . 1 . . . . . 1 . . . 1 . . . . 2 . . . . . . . . 1 Open Door 2 | . . 1 . . . . . . . 1 . . . . . . . . . . . . . . . Open DSF 1 | . . . . . . . . . . . . . 1 . . . . . . . . . . . . Branch Access Points 2 | . . . . . . . 1 . 1 . . . . . . . . . . . . . . . . Emergency Access Points 5 | . . . . . . . 1 . 1 . . . . . . . . . . 1 . . 1 1 . Terminal Index 1 | . . . . . . . 1 . . . . . . . . . . . . . . . . . . Scanalyzer Index 1 | . . . . . . . . . . . 1 . . . . . . . . . . . . . . Garrison Index 1 | . . . . . . . . . 1 . . . . . . . . . . . . . . . . Alert Level 4 | . . . . . . . 3 . 1 . . . . . . . . . . . . . . . . Unreport Threat 3 | . . . . . . . 1 . 1 . . . . . . . . . . . . . 1 . . Locate Traps 3 | . . . 1 . . . 1 . 1 . . . . . . . . . . . . . . . . Security Status 1 | . . . 1 . . . . . . . . . . . . . . . . . . . . . . Hauler Manifests 1 | . . . 1 . . . . . . . . . . . . . . . . . . . . . . Zone Layout 2 | . . . . . . . 2 . . . . . . . . . . . . . . . . . . Garrison Registry 2 | . . . . . . . . 1 . . . . . . . . . . . . . 1 . . . Proto ID Catalog 1 | . . . . . 1 . . . . . . . . . . . . . . . . . . . . Fabricator Hacks 5 | . . . . . . . . . . . . . . . 4 . . . . . 1 . . . . Load Schematic 2 | . . . . . . . . . . . . . . . 2 . . . . . . . . . . Build 3 | . . . . . . . . . . . . . . . 2 . . . . . 1 . . . . Repair Station Hacks 5 | . . . . . . . 2 . . . 2 . . . . . . . . . 1 . . . . Scan Component 3 | . . . . . . . 1 . . . 1 . . . . . . . . . 1 . . . . Repair 2 | . . . . . . . 1 . . . 1 . . . . . . . . . . . . . . Recycling Unit Hacks . | . . . . . . . . . . . . . . . . . . . . . . . . . . Scanalyzer 10 | . . . 2 . . . . . 3 . 2 . . . 3 . . . . . . . . . . Insert Component 1 | . . . . . . . . . . . . . . . 1 . . . . . . . . . . Analyze 1 | . . . . . . . . . . . . . . . 1 . . . . . . . . . . Retrieve Study 8 | . . . 2 . . . . . 3 . 2 . . . 1 . . . . . . . . . . Garrison Access Hacks 7 | . . . . . . . 1 . 1 . 2 . . . . . . . 1 . 1 . 1 . . Unlock Access 5 | . . . . . . . 1 . 1 . . . . . . . . . 1 . 1 . 1 . . Seal Access 1 | . . . . . . . . . . . 1 . . . . . . . . . . . . . . Coupler Status 1 | . . . . . . . . . . . 1 . . . . . . . . . . . . . . Unauthorized Hacks 10 | . 2 . 1 . . . 5 . 2 . . . . . . . . . . . . . . . . Terminals 9 | . 2 . 1 . . . 5 . 1 . . . . . . . . . . . . . . . . Track 1 | . . . . . . . 1 . . . . . . . . . . . . . . . . . . Botnet 8 | . 2 . 1 . . . 4 . 1 . . . . . . . . . . . . . . . . Fabricators . | . . . . . . . . . . . . . . . . . . . . . . . . . . Repair Stations 1 | . . . . . . . . . 1 . . . . . . . . . . . . . . . . Patch 1 | . . . . . . . . . 1 . . . . . . . . . . . . . . . . Recycling Units . | . . . . . . . . . . . . . . . . . . . . . . . . . . Scanalyzers . | . . . . . . . . . . . . . . . . . . . . . . . . . . Garrison Access . | . . . . . . . . . . . . . . . . . . . . . . . . . . Data Cores Recovered . | . . . . . . . . . . . . . . . . . . . . . . . . . . Used . | . . . . . . . . . . . . . . . . . . . . . . . . . . Hacking Detections 44 | . 3 . 2 . . . 5 . 8 1 6 . 1 . 1 6 . . 2 2 1 1 2 1 2 Full Trace Events 8 | . 2 . . . . . . . 1 . . . 1 . . 1 . . 1 1 . 1 . . . Feedback Events . | . . . . . . . . . . . . . . . . . . . . . . . . . . Feedback Blocked . | . . . . . . . . . . . . . . . . . . . . . . . . . . Robot Schematics Acquired . | . . . . . . . . . . . . . . . . . . . . . . . . . . Robots Built . | . . . . . . . . . . . . . . . . . . . . . . . . . . Authchips . | . . . . . . . . . . . . . . . . . . . . . . . . . . Time . | . . . . . . . . . . . . . . . . . . . . . . . . . . Total Robot Build Rating . | . . . . . . . . . . . . . . . . . . . . . . . . . . Part Schematics Acquired 1 | . . . . . . . . . . . . . . . 1 . . . . . . . . . . Parts Built 6 | . . . . . . . . . . . . . . . 4 . . . . . 2 . . . . Authchips 2 | . . . . . . . . . . . . . . . 2 . . . . . . . . . . Time 201 | . . . . . . . . . . . . . . . 62 . . . . . 139 . . . . Total Part Build Rating 38 | . . . . . . . . . . . . . . . 20 . . . . . 18 . . . . Part Studies Acquired 4 | . . . . . . . . . 2 . 1 . . . 1 . . . . . . . . . . Parts Repaired 2 | . . . . . . . 1 . . . 1 . . . . . . . . . . . . . . Time 82 | . . . . . . . 38 . . . 44 . . . . . . . . . . . . . . Parts Recycled . | . . . . . . . . . . . . . . . . . . . . . . . . . . Recycled Matter . | . . . . . . . . . . . . . . . . . . . . . . . . . . Retrieved Matter . | . . . . . . . . . . . . . . . . . . . . . . . . . . Retrieved Components . | . . . . . . . . . . . . . . . . . . . . . . . . . . Parts Scanalyzed 1 | . . . . . . . . . . . . . . . 1 . . . . . . . . . . Part Schematics Acquired 1 | . . . . . . . . . . . . . . . 1 . . . . . . . . . . Parts Damaged . | . . . . . . . . . . . . . . . . . . . . . . . . . . Bothacking | -11 -10 -10 -9 -9 -9 -8 -8 -8 -8 -8 -7 -7 -7 -7 -6 -6 -5 -5 -5 -5 -5 -5 -4 -4 -4 ------------ Run | Yrd Mat Min Mat Min Exi Min Mat Gar Mat Gar Fac Was Fac DSF Fac Ext Fac Was Fac Gar Fac Gar Fac Gar Fac Used RIF Installer 4 | . . . . . . . . 1 . 1 . . . . . . . . . 1 . 1 . . . Coupler Efficiency 1 | . . . . . . . . . . 1 . . . . . . . . . . . . . . . Command Fork 1 | . . . . . . . . . . . . . . . . . . . . . . 1 . . . Watcher Feeds 1 | . . . . . . . . . . . . . . . . . . . . 1 . . . . . Robots Hacked 99 | . . . . . . . . 2 12 15 13 6 . 1 . 1 9 . . 10 4 3 14 5 4 Non-combat 17 | . . . . . . . . . 3 . 6 . . . . . 1 . . 2 . . 3 . 2 Combat 82 | . . . . . . . . 2 9 15 7 6 . 1 . 1 8 . . 8 4 3 11 5 2 Robot Hacks Applied 109 | . . . . . . . . 2 13 16 16 6 . 1 . 1 10 . . 10 4 4 17 5 4 parse_system 2 | . . . . . . . . . . . . . . . . . 1 . . . . . . . 1 no_distress 1 | . . . . . . . . . . . 1 . . . . . . . . . . . . . . generate_echo 1 | . . . . . . . . . . . . . . . . . . . . . . . . . 1 find_chute 1 | . . . . . . . . . . . . . . . . . 1 . . . . . . . . ignore_repairs 1 | . . . . . . . . . . . . . . . . . . . . . . . 1 . . randomize_corridors 1 | . . . . . . . . . . . 1 . . . . . . . . . . . . . . purge_threat 6 | . . . . . . . . . 1 . 2 . . . . . . . . . . . 3 . . block_reporting 1 | . . . . . . . . . . . 1 . . . . . . . . . . . . . . mark_security 1 | . . . . . . . . . . . 1 . . . . . . . . . . . . . . ignore_targets 6 | . . . . . . . . . . . . 6 . . . . . . . . . . . . . find_garrison 1 | . . . . . . . . . . . . . . . . . 1 . . . . . . . . link_fov 1 | . . . . . . . . . . . 1 . . . . . . . . . . . . . . scatter_targeting 2 | . . . . . . . . . . . 1 . . . . . . . . . . . 1 . . disrupt_area 1 | . . . . . . . . . . 1 . . . . . . . . . . . . . . . spike_heat 3 | . . . . . . . . . 1 1 . . . . . . . . . . . 1 . . . overload_power 2 | . . . . . . . . . . 2 . . . . . . . . . . . . . . . amplify_resonance 3 | . . . . . . . . . . 2 . . . . . . . . . 1 . . . . . disable_weapons 1 | . . . . . . . . . . . . . . . . . . . . . 1 . . . . reboot_system 6 | . . . . . . . . . . 2 1 . . . . . . . . 1 . . 1 1 . go_dormant 1 | . . . . . . . . 1 . . . . . . . . . . . . . . . . . overwrite_iff 16 | . . . . . . . . . 2 2 1 . . . . . 2 . . 3 1 2 2 1 . streamctrl_high 5 | . . . . . . . . . . 1 1 . . . . . 1 . . 1 . . 1 . . formatsys_low 7 | . . . . . . . . . 3 . 1 . . . . . . . . 1 . . 2 . . formatsys_high 39 | . . . . . . . . 1 6 5 4 . . 1 . 1 4 . . 3 2 1 6 3 2 Relay Couplers Released 75 | . . . . . . . . 7 . 14 . . . . . . 1 . 3 21 . 17 4 7 1 Machine Destruction 64 | . . . . . . . . 7 . 14 . . . . . . 1 . . 21 . 13 . 7 1 Programmers 11 | . . . . . . . . . . . . . . . . . . . 3 . . 4 4 . . Attached 43 | . . . . . . . . 2 4 5 3 . . 1 . 1 2 . 1 5 3 6 4 5 1 Fabnet Peak Effective % . | . . . . . . . . . . . . . . . . . . . . . . . . . . Robots Rewired 13 | . . . . . . . . . . 3 . . . . . 7 . . . . . 3 . . . Allies Hacked 2 | . . . . . . . . . . . 1 . . . . . . . . . . 1 . . . Hacks Repelled . | . . . . . . . . . . . . . . . . . . . . . . . . . . Allies | -11 -10 -10 -9 -9 -9 -8 -8 -8 -8 -8 -7 -7 -7 -7 -6 -6 -5 -5 -5 -5 -5 -5 -4 -4 -4 -------- Run | Yrd Mat Min Mat Min Exi Min Mat Gar Mat Gar Fac Was Fac DSF Fac Ext Fac Was Fac Gar Fac Gar Fac Gar Fac Total Allies 122 | . . . . . . . . 1 11 11 7 19 . 1 . 8 7 18 . 8 3 9 12 5 2 Largest Group 19 | . . . . . . . . 1 6 5 4 19 17 17 15 14 13 17 13 10 4 8 8 4 2 Highest-Rated Group 631 | . . . . . . . . 16 88 130 71 465 437 437 411 415 387 631 531 420 101 319 381 118 80 Highest-Rated Ally 142 | . . . . . . . . 16 23 39 29 35 35 35 35 41 41 50 50 50 41 95 142 49 49 Total Orders 4 | . . . . . . . . . . 1 . . . . . 1 . . . . . . 2 . . STAY 2 | . . . . . . . . . . 1 . . . . . . . . . . . . 1 . . FOLLOW 1 | . . . . . . . . . . . . . . . . . . . . . . . 1 . . AID 1 | . . . . . . . . . . . . . . . . 1 . . . . . . . . . Ally Attacks 1106 | . . . . . . . . 6 71 87 42 97 . 64 34 186 160 59 60 37 22 74 72 25 10 Total Damage 26807 | . . . . . . . . 90 1437 1198 487 3409 . 1020 440 3849 2983 3416 1930 1197 426 2101 2070 585 169 Kills 173 | . . . . . . . . 1 12 15 5 8 . 8 3 29 27 9 12 6 1 17 12 4 4 Allies Corrupted 6 | . . . . . . . . . . . . . . . 1 . 2 . . 2 . . . 1 . Allies Melted . | . . . . . . . . . . . . . . . . . . . . . . . . . . Intel | -11 -10 -10 -9 -9 -9 -8 -8 -8 -8 -8 -7 -7 -7 -7 -6 -6 -5 -5 -5 -5 -5 -5 -4 -4 -4 ------- Run | Yrd Mat Min Mat Min Exi Min Mat Gar Mat Gar Fac Was Fac DSF Fac Ext Fac Was Fac Gar Fac Gar Fac Gar Fac Active Infowar (turns) 2369 | 16 537 574 . . . . 195 . . . . . . . . . . . . . . . 414 150 483 Terrain 1127 | 16 537 574 . . . . . . . . . . . . . . . . . . . . . . . Machine Analysis 759 | . . . . . . . 195 . . . . . . . . . . . . . . . 414 150 . Jamming 483 | . . . . . . . . . . . . . . . . . . . . . . . . . 483 Robot Analysis Total 5 | . 1 . . . . . 1 . 2 . . . . . . 1 . . . . . . . . . Derelict Logs Recovered 1 | . . 1 . . . . . . . . . . . . . . . . . . . . . . . Drone Launches . | . . . . . . . . . . . . . . . . . . . . . . . . . . Drone Recoveries . | . . . . . . . . . . . . . . . . . . . . . . . . . . Exploration | -11 -10 -10 -9 -9 -9 -8 -8 -8 -8 -8 -7 -7 -7 -7 -6 -6 -5 -5 -5 -5 -5 -5 -4 -4 -4 ------------- Run | Yrd Mat Min Mat Min Exi Min Mat Gar Mat Gar Fac Was Fac DSF Fac Ext Fac Was Fac Gar Fac Gar Fac Gar Fac Turns Passed 24499 | 102 537 871 578 646 579 183 1533 1514 2075 1915 2063 754 82 302 713 1058 577 780 470 2041 373 1646 1741 878 488 Spaces Moved 12068 | 47 289 287 277 237 240 55 528 598 941 853 1093 489 34 135 531 599 296 480 239 904 182 723 1076 479 456 Core 15 | 4 . . . 2 . . . . 9 . . . . . . . . . . . . . . . . Treads 3108 | 43 289 287 277 235 240 55 528 598 62 . . . . . . . . 71 235 179 . . . . 9 Legs 8443 | . . . . . . . . . 870 853 1093 489 34 135 531 599 296 409 4 725 182 723 1076 424 . Wheels 294 | . . . . . . . . . . . . . . . . . . . . . . . . . 294 Hover 208 | . . . . . . . . . . . . . . . . . . . . . . . . 55 153 Flight . | . . . . . . . . . . . . . . . . . . . . . . . . . . Fastest Speed 50 | 50 160 160 160 160 240 165 157 157 105 177 118 126 196 190 108 112 120 112 160 108 183 183 105 56 60 Average Speed 163 | 152 160 160 160 225 240 238 224 208 193 186 162 142 196 190 112 117 143 134 165 173 183 184 131 114 96 Slowest Speed 600 | 160 160 160 160 600 240 240 245 237 450 270 188 196 196 196 182 182 190 260 260 240 183 187 185 190 170 Overloaded Moves . | . . . . . . . . . . . . . . . . . . . . . . . . . . Propulsion Burnouts . | . . . . . . . . . . . . . . . . . . . . . . . . . . Robots Hopped . | . . . . . . . . . . . . . . . . . . . . . . . . . . Potential Cave-ins 12 | . . . . . . . . . . . . . . . . . . . . 5 . . . 7 . Cave-ins Triggered 1 | . . . . . . . . . . . . . . . . . . . . 1 . . . . . Exploration Rate (%) 47 | 3 51 68 36 68 59 19 38 67 79 89 34 95 2 95 17 69 14 91 6 87 7 51 27 47 14 Regions Visited 25 Branch Regions 5 Pre-discovered Areas 1 | . . . . . 1 . . . . . . . . . . . . . . . . . . . . Known Exits Taken 8 | . . . 1 . 1 . 1 . 1 . . . 1 . . . . . 1 . 1 . 1 . . Unknown Exits Taken 7 | 1 1 1 . 1 . 1 . . . . . . . . 1 1 . . . . . . . . . Scrap Searched 2 | . . 1 . 1 . . . . . . . . . . . . . . . . . . . . . Spaces Dug 21 | . . . . . . . 5 . 7 4 . . . . . . . . . . . . 3 . 2 Terrain Destroyed 863 | . 9 6 22 69 . 75 5 17 36 4 36 1 . 4 1 124 145 16 9 36 . 1 15 230 2 Melee 15 | . . . . . . . 5 . 7 3 . . . . . . . . . . . . . . . Projectile 151 | . . . . . . . . . . 1 10 1 . 4 1 62 12 16 9 13 . 1 15 4 2 AOE 697 | . 9 6 22 69 . 75 . 17 29 . 26 . . . . 62 133 . . 23 . . . 226 . Terrain Rammed . | . . . . . . . . . . . . . . . . . . . . . . . . . . Walls Destroyed . | . . . . . . . . . . . . . . . . . . . . . . . . . . Machines Disabled . | . . . . . . . . . . . . . . . . . . . . . . . . . . Actions | -11 -10 -10 -9 -9 -9 -8 -8 -8 -8 -8 -7 -7 -7 -7 -6 -6 -5 -5 -5 -5 -5 -5 -4 -4 -4 --------- Run | Yrd Mat Min Mat Min Exi Min Mat Gar Mat Gar Fac Was Fac DSF Fac Ext Fac Was Fac Gar Fac Gar Fac Gar Fac Total 15594 | 63 328 696 370 300 245 92 815 793 1118 1088 1308 544 50 171 642 847 373 557 298 1227 219 934 1319 694 503 Wait 1705 | . 7 383 52 16 . 18 226 97 41 38 85 28 17 9 83 116 16 18 26 101 11 83 134 78 22 Move 12046 | 47 288 286 276 236 239 54 527 596 941 852 1093 488 33 134 530 598 296 479 238 902 182 722 1075 478 456 Hop . | . . . . . . . . . . . . . . . . . . . . . . . . . . Pick Up 173 | 2 6 12 5 7 3 . 6 13 9 17 11 4 . 7 8 4 2 3 5 27 1 11 7 3 . Fast Attach 125 | 7 1 2 1 3 . . 3 1 10 9 5 1 . 1 . 5 1 12 7 13 1 1 11 21 9 Attach 73 | . . 1 4 6 . 2 2 . 5 6 4 . . . 5 . 3 5 . 12 . 5 8 4 1 Detach 30 | . 1 1 1 1 . 1 1 . 5 3 4 . . . . . . 3 2 2 . 2 . 2 1 Swap 179 | . 4 . 2 2 . 3 5 8 26 17 20 5 . 6 8 13 10 2 3 16 6 9 8 6 . Drop 177 | . 2 8 4 1 3 . 4 14 15 16 18 8 . 8 6 12 . 3 9 16 6 7 7 8 2 Fire 675 | 5 18 3 24 24 . 13 . 5 25 39 61 10 . 6 2 53 45 32 8 99 6 57 65 72 3 Melee 203 | . . . . 2 . . 41 53 39 59 . . . . . . . . . . . . . . 9 Ram 1 | . . . . 1 . . . . . . . . . . . . . . . . . . . . . Kick 27 | . . . . . . . . . 2 . 5 . . . . 1 . . . . . . 1 18 . Crush 6 | 2 1 . 1 1 . 1 . . . . . . . . . . . . . . . . . . . Escape Stasis 80 | . . . . . . . . . . 20 . . . . . 5 . . . 36 5 10 . 4 . Rewire 88 | . . . . . . . . . . 12 2 . . . . 40 . . . 3 1 27 3 . . Trap 6 | . . . . . . . . 6 . . . . . . . . . . . . . . . . . Miscellaneous . | . . . . . . . . . . . . . . . . . . . . . . . . . . Route ------- -11/Scrapyard -10/Materials (discovered 3 exits: *Mat x2 / *Min) -10/Mines -9/Materials -9/Mines (discovered 3 exits: *Mat / *Exi / [*Zio]) -9/Exiles -8/Mines -8/Materials (discovered 3 exits: *Fac x2 / Gar) -8/Garrison (discovered 3 exits: *Mat x3) -8/Materials (discovered 3 exits: *Fac x2 / Gar) -8/Garrison (discovered 4 exits: *Fac x3 / [*Mat]) -7/Factory (discovered 3 exits: *Fac / [*Low x2]) -7/Waste -7/Factory -7/DSF -6/Factory (discovered 2 exits: [*Low] / *Ext) -6/Extension (discovered 3 exits: [*Fac x2] / [*Cet]) -5/Factory -5/Waste -5/Factory (discovered 2 exits: *Fac / Gar) -5/Garrison (discovered 3 exits: *Fac x3) -5/Factory (discovered 2 exits: *Fac / Gar) -5/Garrison (discovered 3 exits: *Fac x3) -4/Factory -4/Garrison -4/Factory (discovered 1 exit: [*Res]) History --------- Turn | Location | Event 22 | -11/Scrapyard | Discovered new exit (range 16) 103 | -11/Scrapyard | Entered Materials 317 | -10/Materials | Build established: Mutant 391 | -10/Materials | Discovered new exit (range 5) 531 | -10/Materials | Discovered new exit (range 12) 576 | -10/Materials | Central database locked down 593 | -10/Materials | Discovered new exit (range 12) 640 | -10/Materials | Entered Mines 1350 | -10/Mines | Found a hidden stash of uninstalled traps 1379 | -10/Mines | Discovered new exit (range 9) 1400 | -10/Mines | Met a Derelict who couldn't figure out how to use a Trap Extractor 1511 | -10/Mines | Entered Materials 1511 | -9/Materials | Evolved 2 slots: Utility x2 1512 | -9/Materials | Identified exit to Mines 1727 | -9/Materials | Destroyed 9 combat bots 2089 | -9/Materials | Entered Mines 2190 | -9/Mines | Discovered new exit (range 8) 2233 | -9/Mines | Core integrity fell below 50% 2260 | -9/Mines | Lost 6 parts (1p2n1u2w) 2564 | -9/Mines | A Derelict revealed a hidden shortcut to a safe place 2687 | -9/Mines | Received a Rocket Launcher from a helpful Derelict 2725 | -9/Mines | Deemed a non-threat by the Exiles lab entrance 2725 | -9/Mines | Discovered new exit (range 5) 2735 | -9/Mines | Entered Exiles 2736 | -9/Exiles | Identified exit to Mines 2832 | -9/Exiles | Build established: Scavenger-Mutant 2837 | -9/Exiles | Met 8R-AWN 2878 | -9/Exiles | Met EX-HEX 2945 | -9/Exiles | Met EX-BIN 2974 | -9/Exiles | Aligned with FarCom system 2976 | -9/Exiles | Given EX-Vault access code 3038 | -9/Exiles | Opened EX-Vault 3063 | -9/Exiles | Found Trap Reconfigurator 3117 | -9/Exiles | Warned to stay clear of 0b10 Research branches 3194 | -9/Exiles | Met EX-DEC 3203 | -9/Exiles | Learned location of Zion (-7) 3314 | -9/Exiles | Left Exiles lab with Trap Reconfigurator 3314 | -9/Exiles | Entered Mines 3442 | -8/Mines | Discovered new exit (range 16) 3490 | -8/Mines | System corruption reached 10% 3497 | -8/Mines | Entered Materials 3497 | -8/Materials | Evolved 2 slots: Utility x2 3628 | -8/Materials | Identified exit to Garrison 3797 | -8/Materials | Build established: Scavenger-Gladiator 4368 | -8/Materials | Discovered new exit (range 4) 4729 | -8/Materials | Repaired Hrd. Medium Armor Plating 4762 | -8/Materials | Discovered new exit (range 15) 4788 | -8/Materials | Central database locked down 5030 | -8/Materials | Entered Garrison 5037 | -8/Garrison | Build established: Gladiator 5078 | -8/Garrison | Discovered new exit (range 43) 5078 | -8/Garrison | Discovered new exit (range 69) 5078 | -8/Garrison | Discovered new exit (range 44) 5158 | -8/Garrison | Triggered checkpoint 5298 | -8/Garrison | Triggered checkpoint 5339 | -8/Garrison | Installed Relay Interface Framework 5418 | -8/Garrison | Garrison Relay disabled 5746 | -8/Garrison | Triggered checkpoint 5830 | -8/Garrison | Triggered checkpoint 6031 | -8/Garrison | Spotted B-75 Beast 6398 | -8/Garrison | Triggered checkpoint 6419 | -8/Garrison | Garrison Relay disabled 6544 | -8/Garrison | Entered Materials 6544 | -8/Materials | Accompanied by 1 ally 6680 | -8/Materials | Build established: Bothacker-Mutant 6690 | -8/Materials | Lost 3 allies 7382 | -8/Materials | Discovered new exit (range 13) 7602 | -8/Materials | Core integrity fell below 50% 7773 | -8/Materials | Build established: Commander-Mutant 8073 | -8/Materials | Build established: Commander-Gladiator 8239 | -8/Materials | Discovered new exit (range 16) 8605 | -8/Materials | Build established: Gladiator 8615 | -8/Materials | Identified exit to Garrison 8619 | -8/Materials | Entered Garrison 8619 | -8/Garrison | Accompanied by 3 allies 8852 | -8/Garrison | Lost 3 allies 8866 | -8/Garrison | Core integrity fell below 20% 8890 | -8/Garrison | Lost 5 parts (1n4u) 8977 | -8/Garrison | Triggered checkpoint 8997 | -8/Garrison | Garrison Relay disabled 9099 | -8/Garrison | Triggered checkpoint 9173 | -8/Garrison | Lost 3 allies 9289 | -8/Garrison | Triggered checkpoint 9314 | -8/Garrison | Build established: Bothacker-Mutant 9315 | -8/Garrison | Garrison Relay disabled 9333 | -8/Garrison | Triggered checkpoint 9356 | -8/Garrison | Discovered new exit (range 3) 9431 | -8/Garrison | Discovered new exit (range 10) 9673 | -8/Garrison | Triggered checkpoint 9674 | -8/Garrison | Triggered checkpoint 9747 | -8/Garrison | Lost 3 allies 9966 | -8/Garrison | Discovered new exit (range 5) 10011 | -8/Garrison | Triggered checkpoint 10059 | -8/Garrison | Garrison Relay disabled 10283 | -8/Garrison | Discovered new exit (range 11) 10351 | -8/Garrison | Triggered checkpoint 10428 | -8/Garrison | Expanded RIF knowledge: Coupler Efficiency 10466 | -8/Garrison | Garrison Relay disabled 10534 | -8/Garrison | Entered Factory 10534 | -7/Factory | Evolved 2 slots: Propulsion x1, Weapon x1 10786 | -7/Factory | Garrison activated, responded to threat 10968 | -7/Factory | Build established: Bothacker-Skirmisher 11252 | -7/Factory | Repaired Remote Datajack 11497 | -7/Factory | Discovered new exit (range 4) 11695 | -7/Factory | Discovered new exit (range 14) 11930 | -7/Factory | Discovered new exit (range 8) 12597 | -7/Factory | Sucked down chute 12597 | -7/Factory | Entered Waste 12614 | -7/Waste | Spotted C-40 Crusher 12614 | -7/Waste | Spotted C-40 Crusher 12614 | -7/Waste | Spotted C-40 Crusher 12673 | -7/Waste | Spotted C-40 Crusher 12693 | -7/Waste | Spotted C-40 Crusher 12697 | -7/Waste | Spotted C-40 Crusher 12715 | -7/Waste | Discovered new exit (range 16) 12985 | -7/Waste | Warlord forces began an assault 13095 | -7/Waste | Allies destroyed C-40 Crusher 13351 | -7/Waste | Entered Factory 13351 | -7/Factory | Accompanied by 17 allies 13416 | -7/Factory | Identified exit to DSF 13433 | -7/Factory | Entered DSF 13433 | -7/DSF | Accompanied by 17 allies 13476 | -7/DSF | Additional patrols routed to DSF 13614 | -7/DSF | Discovered new exit (range 14) 13699 | -7/DSF | Sterilization system engaged 13719 | -7/DSF | Ambient heat levels rising (+10) 13734 | -7/DSF | Ambient heat levels rising (+10) 13735 | -7/DSF | Entered Factory 13735 | -6/Factory | Accompanied by 15 allies 13735 | -6/Factory | Evolved 2 slots: Propulsion x1, Utility x1 13840 | -6/Factory | Central database locked down 14107 | -6/Factory | Discovered new exit (range 2) 14220 | -6/Factory | Fabricated Flexi-carbon Leg (x2) 14257 | -6/Factory | Fabricated Flexi-carbon Leg (x2) 14410 | -6/Factory | Discovered new exit (range 16) 14448 | -6/Factory | Entered Extension 14448 | -6/Extension | Accompanied by 14 allies 14532 | -6/Extension | Energy Cycler disabled 14532 | -6/Extension | Rescued a captive Derelict 14532 | -6/Extension | Rescued a captive Derelict 14532 | -6/Extension | Rescued a captive Derelict 14532 | -6/Extension | Rescued a captive Derelict 14533 | -6/Extension | Rescued a captive Derelict 14533 | -6/Extension | Rescued a captive Derelict 14533 | -6/Extension | Rescued a captive Derelict 14538 | -6/Extension | Rescued a captive Derelict 14563 | -6/Extension | Lost 3 allies 14812 | -6/Extension | Discovered new exit (range 15) 14820 | -6/Extension | Spotted B-75 Beast 14839 | -6/Extension | Allies destroyed B-75 Beast 14857 | -6/Extension | Extracted ID and sensor layout for unrecognized location from A7's data core 15089 | -6/Extension | Found Powered Armor 15289 | -6/Extension | Disrupted transfer network 15301 | -6/Extension | Discovered new exit (range 12) 15301 | -6/Extension | Discovered new exit (range 8) 15347 | -6/Extension | Lost 3 allies 15506 | -6/Extension | Entered Factory 15506 | -5/Factory | Accompanied by 10 allies 15506 | -5/Factory | Evolved 2 slots: Power x1, Utility x1 15643 | -5/Factory | Garrison activated, responded to threat 15675 | -5/Factory | Lost 3 allies 15806 | -5/Factory | First assault squad dispatched 15846 | -5/Factory | Lost 3 allies 16047 | -5/Factory | Build established: Scavenger-Tank 16070 | -5/Factory | Lost 6 allies 16083 | -5/Factory | Manually triggered Chute Trap 16083 | -5/Factory | Sucked down chute 16083 | -5/Factory | Entered Waste 16088 | -5/Waste | Spotted C-40 Crusher 16104 | -5/Waste | Spotted C-40 Crusher 16156 | -5/Waste | Spotted C-40 Crusher 16197 | -5/Waste | Spotted C-40 Crusher 16221 | -5/Waste | Spotted C-40 Crusher 16225 | -5/Waste | Spotted C-40 Crusher 16256 | -5/Waste | Crushed by Compactor (1 part destroyed, 2 dropped) 16283 | -5/Waste | Crushed by Compactor (1 part destroyed, 1 dropped) 16288 | -5/Waste | Crushed by Compactor (1 part destroyed, 1 dropped) 16319 | -5/Waste | Lost 6 parts (1p2n2u1w) 16335 | -5/Waste | Destroyed C-40 Crusher 16411 | -5/Waste | Crushed by Compactor (1 part destroyed, 2 dropped) 16594 | -5/Waste | Build established: Mutant 16595 | -5/Waste | Warlord forces began an assault 16600 | -5/Waste | Allies destroyed C-40 Crusher 16641 | -5/Waste | Lost 5 allies 16743 | -5/Waste | Allies destroyed C-40 Crusher 16831 | -5/Waste | Discovered new exit (range 12) 16863 | -5/Waste | Entered Factory 16863 | -5/Factory | Accompanied by 13 allies 16969 | -5/Factory | Build established: Tank 17150 | -5/Factory | Garrison activated, responded to threat 17190 | -5/Factory | Discovered new exit (range 13) 17197 | -5/Factory | Identified exit to Garrison 17333 | -5/Factory | Entered Garrison 17333 | -5/Garrison | Accompanied by 10 allies 17377 | -5/Garrison | Expanded RIF knowledge: Watcher Feeds 17515 | -5/Garrison | Build established: Scavenger-Tank 17565 | -5/Garrison | Triggered checkpoint 17588 | -5/Garrison | Garrison Relay disabled 17741 | -5/Garrison | Triggered checkpoint 17743 | -5/Garrison | Triggered checkpoint 17751 | -5/Garrison | P-70 Sage assimilated allied VW-HSY(g) 17760 | -5/Garrison | Triggered checkpoint 17808 | -5/Garrison | Lost 3 parts (1p1u1w) 17856 | -5/Garrison | Lost 10 allies 17889 | -5/Garrison | Core integrity fell below 50% 17917 | -5/Garrison | Crushed by falling debris 17918 | -5/Garrison | System corruption reached 10% 17948 | -5/Garrison | Lost 11 parts (2p3n4u2w) 18298 | -5/Garrison | Triggered checkpoint 18398 | -5/Garrison | Discovered new exit (range 10) 18421 | -5/Garrison | Triggered checkpoint 18472 | -5/Garrison | Garrison Relay disabled 18757 | -5/Garrison | Discovered new exit (range 14) 18776 | -5/Garrison | Build established: Bothacker-Tank 18827 | -5/Garrison | Triggered checkpoint 18873 | -5/Garrison | Garrison Relay disabled 18926 | -5/Garrison | Garrison Relay disabled 19166 | -5/Garrison | Discovered new exit (range 11) 19249 | -5/Garrison | Triggered checkpoint 19276 | -5/Garrison | Garrison Relay disabled 19374 | -5/Garrison | Entered Factory 19374 | -5/Factory | Accompanied by 3 allies 19490 | -5/Factory | Discovered new exit (range 37) 19635 | -5/Factory | Fabricated Lgt. Quantum Reactor? 19674 | -5/Factory | First assault squad dispatched 19700 | -5/Factory | Build established: Bothacker-Skirmisher 19744 | -5/Factory | Garrison activated, responded to threat 19745 | -5/Factory | Identified exit to Garrison 19747 | -5/Factory | Entered Garrison 19747 | -5/Garrison | Accompanied by 3 allies 19877 | -5/Garrison | Triggered checkpoint 19917 | -5/Garrison | Triggered checkpoint 19932 | -5/Garrison | Garrison Relay disabled 19984 | -5/Garrison | Found embedded Infiltrators 20236 | -5/Garrison | Build established: Scavenger-Skirmisher 20336 | -5/Garrison | Spotted B-75 Beast 20347 | -5/Garrison | Triggered checkpoint 20350 | -5/Garrison | Allies destroyed B-75 Beast 20356 | -5/Garrison | Triggered checkpoint 20400 | -5/Garrison | Lost 3 allies 20437 | -5/Garrison | Triggered checkpoint 20450 | -5/Garrison | Lost 3 allies 20491 | -5/Garrison | Triggered checkpoint 20517 | -5/Garrison | Garrison Relay disabled 20535 | -5/Garrison | Expanded RIF knowledge: Command Fork 20675 | -5/Garrison | Discovered new exit (range 10) 21000 | -5/Garrison | Discovered new exit (range 12) 21034 | -5/Garrison | Discovered new exit (range 18) 21034 | -5/Garrison | Discovered new exit (range 88) 21034 | -5/Garrison | Discovered new exit (range 69) 21075 | -5/Garrison | Build established: Botlord-Skirmisher 21173 | -5/Garrison | Garrison Relay disabled 21393 | -5/Garrison | Entered Factory 21393 | -4/Factory | Accompanied by 1 ally 21393 | -4/Factory | Evolved 2 slots: Propulsion x1, Utility x1 21679 | -4/Factory | Found Hvy. Insulated Plating 22492 | -4/Factory | Lost 3 allies 22547 | -4/Factory | Lost 4 allies 22631 | -4/Factory | Lost 5 parts (1n1u3w) 23007 | -4/Factory | Build established: Bothacker-Skirmisher 23127 | -4/Factory | Identified exit to Garrison 23134 | -4/Factory | Entered Garrison 23134 | -4/Garrison | Accompanied by 1 ally 23138 | -4/Garrison | Triggered checkpoint 23205 | -4/Garrison | Triggered checkpoint 23411 | -4/Garrison | Lost 3 allies 23420 | -4/Garrison | Spotted B-86 Titan 23472 | -4/Garrison | Spotted B-86 Titan 23527 | -4/Garrison | Core integrity fell below 50% 23565 | -4/Garrison | Lost 9 parts (2p4n2u1w) 23578 | -4/Garrison | Triggered checkpoint 23585 | -4/Garrison | Triggered checkpoint 23626 | -4/Garrison | Discovered new exit (range 12) 23791 | -4/Garrison | Lost 10 parts (1p4n2u3w) 23838 | -4/Garrison | Triggered checkpoint 23872 | -4/Garrison | Garrison Relay disabled 24012 | -4/Garrison | Entered Factory 24027 | -4/Factory | Lost 5 parts (2n1u2w) 24161 | -4/Factory | Discovered new exit (range 10) 24390 | -4/Factory | Build established: Botlord-Mutant 24444 | -4/Factory | Core integrity fell below 20% 24500 | -4/Factory | Destroyed by G-73 Enforcer with Phase Gun Last Messages --------------- 24485_ E-15 Imp unfolds itself. 24485_ Jacked X-82 Rainmaker... >>parse_system Reading system data... New IDs: Hcp. Matter Pod 24485_ Knocked back. 24488_ Jacked X-82 Rainmaker... 24489_ Mic. Fission Core destroyed. 24489_ Knocked back. 24491_ Arm. Medium Treads blown off. 24491_ Imp. VSS Leg blown off. 24491_ Centrium Wheel blown off. 24491_ E-15 Imp destroyed. 24491_ Adv. Datajack destroyed. 24491_ Relay Coupler [Demolisher] destroyed. 24491_ Knocked back. 24492_ Dropped Relay Coupler [Specialist]. 24492_ Knocked back. 24498_ Hardcell Cannon destroyed. Map ----- +----------------------------------------------------+ | ""??????????????????? | | ?????????????????? | | ?????????????????? | | ??????????????????? | | %= ??????????????????? | | ######### #############+#### ???????????????????? | | ?# ?? ?????????????????????????????????????? | | ?# ""?" "" ????????????????????????????????????? | | ?# """"""" ???????????????????????????????????? | | ?# """"""" #??????????????????????????????????? | | ?# """""""? #??????????????????????????????????? | | ?# ?????#??????????????????????????????????? | | ?# """""???????????????????????????????????????? | | ?# """"""??????????????????????????????????????? | | ?# """""""?????????????????????????????????????? | | ## """"""" #??????????????????????????????????? | | + #??????????????????????????????????? | | ## ! #??????????????????????????????????? | | ?##############?????????#+#??????????????????????? | | ????????????????????????# #??????????????????????? | | ???????????############## #??????????????????????? | | ???????????# # #??????????????????????? | | ???????????# # #??????????????????????? | | ???????????# # #??????????Y???????????? | | ?????####### # #??????????????????????? | | ?????# # #@#????#?????????????????? | | ###### # ; #??? #?????????????????? | | ## # # #### ######????????????? | | ## # ! # ?????????????? | | #? # % # #??????????????? | | #? # ==== # #??????????????? | | ! #?? # / # #??????????????? | | #?? # xgx # #??????????????? | | #??? #######g###### #??????????????? | | #??? #???# b T +??????????????? | | """##???? #???# g o #??????????????? | | "#????? #???# #??????????????? | | "#######+##### #??????????????? | | ; w #??????????????? | | #######+##+###### """% #??????????????? | | #???#! """ ##+##+#??????????????? | | """""" #???# """ #????????????????????? | | """""" #???# #????????????????????? | | """""" #???# """ #????????????????????? | | " """""" #???# """ #????????????????????? | | #???# """ #????????????????????? | | = """""" #???# #????????????????????? | | """""" #???# #????????????????????? | | " """""" #??? #????????????????????? | | " """""" #??? #????????????????????? | +----------------------------------------------------+ Best States ------------- Heat Dissipation 78 Energy Generation 35 Energy Capacity 540 Matter Stores 600 Matter Capacity 600 Sight Range 16 Terrain Scan Range 16 Terrain Scan Density 10 Jamming Range 14 Armor Coverage 625 Resistance: KI 25 Resistance: EM 30 Melee Speed Boost 40 Evasion (%) 55 Targeting Accuracy 6 Melee Accuracy 5 Target Analysis 8 Core Analysis 6 Recoil Reduction 2 Matter Filtering 30 Salvage Targeting 2 Relay Coupler Types 6 Relay Coupler Value 186 Authchip Count 3 Trap Extractor Capacity 6 Item Schematics ----------------- Flexi-carbon Leg | -6/Factory | Scanalyzed Robot Schematics ------------------ None Fabricated ------------ Flexi-carbon Leg | x2 | -6/Factory | Authchip Flexi-carbon Leg | x2 | -6/Factory | Authchip Lgt. Quantum Reactor | x2 | -5/Factory | Preloaded Repaired ---------- Hrd. Medium Armor Plating | 7% | -8/Materials Remote Datajack | 27% | -7/Factory Studied --------- Carbon-fiber Leg | -8/Materials | Hacked Katana | -8/Materials | Hacked Remote Datajack | -7/Factory | Hacked Imp. Carbon-fiber Leg | -6/Factory | Hacked Alien Tech Used ----------------- None Achievements -------------- Beloved Below Hot Goods Taming Of The Crushers Wheee! Zeroed Repercussions Challenges ------------ None Game ------ Seed ScrapoidTrackerJets Manual? 0 Play Time 03:46:14 Cumulative 101.3 hours Start 2026.08.01 @ 21:54:09 End 2026.08.02 @ 01:40:43 Sessions 1 Manual Loads 0 Difficulty Rogue Special Mode None Game No. 59 Rogue 59 Adventurer 0 Explorer 0 Win Type - Total 1 Types 1/0/0/0/0/0/0/0/0/0 Lore% 55 Gallery% 53 Achievement% 43 Wizard Run 0 Options --------- Layout 0 ASCII 0 Keyboard 1 Movement Vi Keybinds 0 Fullscreen 1 Font 24/Smallcaps Map View 76x50 Zoom Use 0% Tactical HUD 1 Map Filters NONE Filters NONE Steam 1 RUN: a9128b22-feab-4d38-8dc1-85c03ef0e1e2